fUSD/lending_fUSD_20240505
["ID","MTS","AMOUNT","RATE_DAILY","PERIOD"]
[326462405,1714939881830,-1349.37,0.00030684,6]
[326462406,1714939881839,-500.0,0.00030684,6]
[326462407,1714939881849,-1486.98,0.00030684,6]
[326462408,1714939881858,-801.86,0.00030684,6]
[326462409,1714939881867,-691.9,0.00030684,6]
[326462410,1714939881876,-500.0,0.00030684,6]
[326462411,1714939881886,-500.0,0.00030684,6]
[326462412,1714939881895,-209.85,0.00030684,6]
[326462413,1714939881904,-922.5,0.00030684,6]
[326462414,1714939881914,-500.0,0.00030684,6]
[326462415,1714939881923,-500.0,0.00030684,6]
[326462416,1714939881933,-500.0,0.00030684,6]
[326462417,1714939881942,-500.0,0.00030684,6]
[326462418,1714939881951,-1018.73,0.00030684,6]
[326462419,1714939881960,-500.0,0.00030684,6]
[326462420,1714939881969,-500.0,0.00030684,6]
[326462421,1714939881979,-705.16,0.00030684,6]
[326462422,1714939881988,-500.0,0.00030684,6]
[326462423,1714939881997,-500.0,0.00030684,6]
[326462424,1714939882006,-500.0,0.00030684,6]
[326462425,1714939882015,-599.96,0.00030684,6]
[326462426,1714939882025,-1320.28,0.00030684,6]
[326462427,1714939882035,-845.17,0.00030684,6]
[326462428,1714939882044,-1445.4,0.00030684,6]
[326462429,1714939882053,-1140.72,0.00030684,6]
[326462430,1714939882063,-579.36,0.00030684,6]
[326462431,1714939882072,-500.0,0.00030684,6]
[326462432,1714939882081,-500.0,0.00030684,6]
[326462433,1714939882090,-500.0,0.00030684,6]
[326462434,1714939882099,-927.82,0.00030684,6]
[326462435,1714939882108,-2338.88,0.00030684,6]
[326462436,1714939882117,-500.0,0.00030684,6]
[326462437,1714939882127,-1831.2,0.00030684,6]
[326462438,1714939882135,-985.65,0.00030684,6]
[326462439,1714939882145,-500.0,0.00030684,6]
[326462440,1714939882155,-1287.8,0.00030684,6]
[326462441,1714939882164,-538.04,0.00030684,6]
[326462442,1714939882173,-1561.58,0.00030684,6]
[326462443,1714939882182,-764.47,0.00030684,6]
[326462444,1714939882191,-671.05,0.00030684,6]
[326462445,1714939882200,-500.0,0.00030684,6]
[326462446,1714939882212,-500.0,0.00030684,6]
[326462447,1714939882222,-500.0,0.00030684,6]
[326462448,1714939882231,-500.0,0.00030684,6]
[326462449,1714939882240,-500.0,0.00030684,6]
[326462450,1714939882250,-500.0,0.00030684,6]
[326462451,1714939882260,-2012.78,0.00030684,6]
[326462452,1714939882269,-500.0,0.00030684,6]
[326462453,1714939882278,-843.73,0.00030684,6]
[326462454,1714939882289,-500.0,0.00030684,2]
[326462455,1714939882299,-2916.7,0.00030684,6]
[326462456,1714939882309,-984.1,0.00030684,6]
[326462457,1714939882318,-500.0,0.00030684,6]
[326462458,1714939882327,-725.25,0.00030684,6]
[326462459,1714939882337,-500.0,0.00030684,6]
[326462460,1714939882346,-500.0,0.00030684,6]
[326462461,1714939882355,-500.0,0.00030684,6]
[326462462,1714939882364,-500.0,0.00030684,6]
[326462463,1714939882373,-1362.29,0.00030684,6]
[326462464,1714939882383,-1154.11,0.00030684,6]
[326462465,1714939882392,-940.94,0.00030684,6]
[326462466,1714939882401,-2711.74,0.00030684,6]
[326462467,1714939882410,-500.0,0.00030684,6]
[326462468,1714939882419,-500.0,0.00030684,6]
[326462469,1714939882429,-500.0,0.00030684,6]
[326462470,1714939882438,-1067.11,0.00030684,6]
[326462471,1714939882447,-715.46,0.00030684,6]
[326462472,1714939882456,-1268.18,0.00030684,6]
[326462473,1714939882466,-500.0,0.00030684,6]
[326462474,1714939882475,-500.0,0.00030684,6]
[326462475,1714939882484,-500.0,0.00030684,6]
[326462476,1714939882493,-1070.48,0.00030684,6]
[326462477,1714939882502,-500.0,0.00030684,6]
[326462478,1714939882511,-1830.63,0.00030684,6]
[326462479,1714939882521,-786.6,0.00030684,6]
[326462480,1714939882531,-2669.12,0.00030684,6]
[326462481,1714939882540,-500.0,0.00030684,6]
[326462482,1714939882549,-803.83,0.00030684,6]
[326462483,1714939882558,-671.28,0.00030684,6]
[326462484,1714939882567,-2327.77,0.00030684,6]
[326462485,1714939882577,-1039.96,0.00030684,6]
[326462486,1714939882586,-500.0,0.00030684,6]
[326462487,1714939882595,-869.77,0.00030684,6]
[326462488,1714939882604,-2324.64,0.00030684,6]
[326462489,1714939882613,-1525.41,0.00030684,6]
[326462490,1714939882622,-1378.33,0.00030684,6]
[326462491,1714939882632,-2278.88,0.00030684,6]
[326462492,1714939882641,-500.0,0.00030684,6]
[326462493,1714939882650,-500.0,0.00030684,6]
[326462494,1714939882659,-514.86,0.00030684,6]
[326462495,1714939882669,-864.52,0.00030684,6]
[326462496,1714939882678,-818.24,0.00030684,6]
[326462497,1714939882687,-1661.98,0.00030684,6]
[326462498,1714939882696,-1592.78,0.00030684,6]
[326462499,1714939882705,-734.35,0.00030684,6]
[326462500,1714939882714,-1192.88,0.00030684,6]
[326462501,1714939882723,-20000.0,0.00030684,2]
[326462502,1714939882732,-1029.09,0.00030684,6]
[326462503,1714939882742,-553.31,0.00030684,6]
[326462504,1714939882751,-547.95,0.00030684,6]
[326462505,1714939882760,-2785.72,0.00030684,6]
[326462506,1714939882769,-687.45,0.00030684,6]
[326462507,1714939882778,-899.43,0.00030684,6]
[326462508,1714939882789,-500.0,0.00030684,6]
[326462509,1714939882798,-500.0,0.00030684,6]
[326462510,1714939882807,-1109.14,0.00030684,6]
[326462511,1714939882816,-1816.85,0.00030684,6]
[326462512,1714939882826,-1673.61,0.00030684,6]
[326462513,1714939882835,-670.55,0.00030684,6]
[326462514,1714939882844,-1378.58,0.00030684,6]
[326462515,1714939882854,-1379.54,0.00030684,6]
[326462516,1714939882863,-705.63,0.00030684,6]
[326462517,1714939882872,-1772.96,0.00030684,6]
[326462518,1714939882881,-500.0,0.00030684,6]
[326462519,1714939882890,-782.88,0.00030684,6]
[326462520,1714939882901,-5000.0,0.00030684,6]
[326462521,1714939882910,-1015.84,0.00030684,6]
[326462522,1714939882920,-1912.93,0.00030684,6]
[326462523,1714939882930,-578.0,0.00030684,6]
[326462524,1714939882940,-782.08,0.00030684,6]
[326462525,1714939882949,-527.02,0.00030684,6]
[326462526,1714939882958,-2543.61,0.00030684,6]
[326462527,1714939882967,-500.0,0.00030684,6]
[326462528,1714939882976,-1431.08,0.00030684,6]
[326462529,1714939882986,-638.56,0.00030684,6]
[326462530,1714939882995,-1470.88,0.00030684,6]
[326462531,1714939883005,-1322.07,0.00030684,6]
[326462532,1714939883014,-702.47,0.00030684,6]
[326462533,1714939883024,-1738.55,0.00030684,6]
[326462534,1714939883034,-1058.25,0.00030684,6]
[326462535,1714939883044,-500.0,0.00030684,6]
[326462536,1714939883053,-565.97,0.00030684,6]
[326462537,1714939883063,-500.0,0.00030684,6]
[326462538,1714939883073,-762.24,0.00030684,6]
[326462539,1714939883082,-1631.73,0.00030684,6]
[326462540,1714939883092,-1340.8,0.00030684,6]
[326462541,1714939883102,-2697.92,0.00030684,6]
[326462542,1714939883111,-648.37,0.00030684,6]
[326462543,1714939883121,-816.75,0.00030684,6]
[326462544,1714939883130,-679.55,0.00030684,6]
[326462545,1714939883139,-575.34,0.00030684,6]
[326462546,1714939883148,-500.0,0.00030684,6]
[326462547,1714939883158,-1108.53,0.00030684,6]
[326462548,1714939883167,-2110.68,0.00030684,6]
[326462549,1714939883178,-500.0,0.00030684,6]
[326462550,1714939883188,-3291.68,0.00030684,6]
[326462551,1714939883197,-1582.39,0.00030684,6]
[326462552,1714939883209,-1153.4,0.00030684,6]
[326462553,1714939883220,-500.0,0.00030684,6]
[326462554,1714939883230,-500.0,0.00030684,6]
[326462555,1714939883239,-500.0,0.00030684,6]
[326462556,1714939883250,-1288.2,0.00030684,6]
[326462557,1714939883259,-920.23,0.00030684,6]
[326462558,1714939883268,-286.7691177,0.00030684,6]
[326462559,1714939883278,-2601.39,0.00030684,6]
[326462560,1714939883289,-1948.74,0.00030684,6]
[326462561,1714939883299,-628.64,0.00030684,6]
[326462562,1714939883308,-500.0,0.00030684,6]
[326462563,1714939883318,-1605.12,0.00030684,6]
[326462564,1714939883328,-1500.0,0.00030684,6]
[326462565,1714939883337,-500.0,0.00030684,6]
[326462566,1714939883347,-791.15,0.00030684,6]
[326462567,1714939883356,-761.65,0.00030684,6]
[326462568,1714939883366,-527.88,0.00030684,6]
[326462569,1714939883375,-500.0,0.00030684,6]
[326462570,1714939883385,-543.55,0.00030684,6]
[326462571,1714939883394,-500.0,0.00030684,6]
[326462572,1714939883404,-706.67,0.00030684,6]
[326462573,1714939883414,-3729.52,0.00030684,6]
[326462574,1714939883423,-644.03,0.00030684,6]
[326462575,1714939883433,-1163.71,0.00030684,6]
[326462576,1714939883443,-864.98,0.00030684,6]
[326462577,1714939883453,-1442.96,0.00030684,6]
[326462578,1714939883465,-1277.38,0.00030684,6]
[326462579,1714939883474,-500.0,0.00030684,6]
[326462580,1714939883483,-871.54,0.00030684,6]
[326462581,1714939883492,-812.74,0.00030684,6]
[326462582,1714939883503,-500.0,0.00030684,6]
[326462583,1714939883512,-943.73,0.00030684,6]
[326462584,1714939883521,-500.0,0.00030684,6]
[326462585,1714939883532,-500.0,0.00030684,6]
[326462586,1714939883542,-500.0,0.00030684,6]
[326462587,1714939883551,-1409.78,0.00030684,6]
[326462588,1714939883560,-608.7,0.00030684,6]
[326462589,1714939883570,-500.0,0.00030684,6]
[326462590,1714939883580,-500.0,0.00030684,6]
[326462591,1714939883589,-770.34,0.00030684,6]
[326462592,1714939883599,-2013.03,0.00030684,6]
[326462593,1714939883608,-678.81,0.00030684,6]
[326462594,1714939883618,-1313.57,0.00030684,6]
[326462595,1714939883628,-2257.08,0.00030684,6]
[326462596,1714939883637,-812.54,0.00030684,6]
[326462597,1714939883646,-500.0,0.00030684,6]
[326462598,1714939883656,-581.54,0.00030684,6]
[326462599,1714939883666,-500.0,0.00030684,6]
[326462600,1714939883676,-1072.03,0.00030684,6]
[326462601,1714939883685,-1192.74,0.00030684,6]
[326462602,1714939883695,-880.8,0.00030684,6]
[326462603,1714939883704,-500.0,0.00030684,6]
[326462604,1714939883713,-500.0,0.00030684,6]
[326462605,1714939883723,-500.0,0.00030684,6]
[326462606,1714939883732,-1507.96,0.00030684,6]
[326462607,1714939883741,-500.0,0.00030684,6]
[326462608,1714939883752,-1677.02,0.00030684,6]
[326462609,1714939883761,-500.0,0.00030684,6]
[326462610,1714939883771,-525.16937602,0.00030684,6]
[326462611,1714939883781,-1310.8,0.00030684,6]
[326462612,1714939883790,-861.02,0.00030684,6]
[326462613,1714939883799,-1434.52,0.00030684,6]
[326462614,1714939883809,-1278.0,0.00030684,6]
[326462615,1714939883819,-1309.71,0.00030684,6]
[326462616,1714939883828,-3093.85,0.00030684,2]
[326462617,1714939883839,-555.82,0.00030684,6]
[326462618,1714939883848,-758.19,0.00030684,6]
[326462619,1714939883858,-500.0,0.00030684,6]
[326462620,1714939883867,-628.5,0.00030684,6]
[326462621,1714939883876,-683.82,0.00030684,6]
[326462622,1714939883886,-1883.01,0.00030684,6]
[326462623,1714939883895,-790.56,0.00030684,6]
[326462624,1714939883905,-1509.6,0.00030684,6]
[326462625,1714939883914,-500.0,0.00030684,6]
[326462626,1714939883923,-500.0,0.00030684,6]
[326462627,1714939883933,-500.0,0.00030684,6]
[326462628,1714939883944,-595.36,0.00030684,6]
[326462629,1714939883954,-683.58,0.00030684,6]
[326462630,1714939883963,-2203.48,0.00030684,6]
[326462631,1714939883973,-895.0,0.00030684,6]
[326462632,1714939883982,-2817.08,0.00030684,6]
[326462633,1714939883992,-1900.36,0.00030684,6]
[326462634,1714939884001,-500.0,0.00030684,6]
[326462635,1714939884011,-500.0,0.00030684,6]
[326462636,1714939884020,-500.0,0.00030684,6]
[326462637,1714939884031,-1468.14,0.00030684,6]
[326462638,1714939884041,-500.0,0.00030684,6]
[326462639,1714939884140,-879.47,0.00030684,6]
[326462640,1714939884150,-443.86,0.00030684,6]
[326462641,1714939884160,-624.67,0.00030684,6]
[326462642,1714939884169,-1257.45,0.00030684,6]
[326462643,1714939884179,-500.0,0.00030684,6]
[326462644,1714939884188,-604.76,0.00030684,6]
[326462645,1714939884198,-910.99,0.00030684,6]
[326462646,1714939884212,-916.71,0.00030684,6]
[326462647,1714939884222,-1177.77,0.00030684,6]
[326462648,1714939884230,-635.79,0.00030684,6]
[326462649,1714939884239,-5000.0,0.00030684,6]
[326462650,1714939884250,-882.44,0.00030684,6]
[326462651,1714939884259,-500.0,0.00030684,6]
[326462652,1714939884269,-500.0,0.00030684,6]
[326462653,1714939884281,-509.31,0.00030684,6]
[326462654,1714939884290,-500.0,0.00030684,2]
[326462655,1714939884300,-1007.46,0.00030684,6]
[326462656,1714939884309,-1274.91,0.00030684,6]
[326462657,1714939884319,-500.0,0.00030684,6]
[326462658,1714939884327,-500.0,0.00030684,6]
[326462659,1714939884336,-500.0,0.00030684,6]
[326462660,1714939884345,-855.8,0.00030684,6]
[326462661,1714939884355,-1619.32,0.00030684,6]
[326462662,1714939884364,-919.75,0.00030684,6]
[326462663,1714939884374,-926.49,0.00030684,6]
[326462664,1714939884383,-500.0,0.00030684,6]
[326462665,1714939884392,-1975.56,0.00030684,6]
[326462666,1714939884402,-1353.37,0.00030684,6]
[326462667,1714939884411,-885.93,0.00030684,6]
[326462668,1714939884420,-500.0,0.00030684,6]
[326462669,1714939884430,-500.0,0.00030684,6]
[326462670,1714939884440,-2904.21,0.00030684,6]
[326462671,1714939884449,-500.0,0.00030684,6]
[326462672,1714939884458,-500.0,0.00030684,6]
[326462673,1714939884467,-1101.38,0.00030684,6]
[326462674,1714939884476,-1317.72,0.00030684,6]
[326462675,1714939884486,-224.45,0.00030684,6]
[326462676,1714939884495,-1565.6,0.00030684,6]
[326462677,1714939884504,-1885.36,0.00030684,6]
[326462678,1714939884514,-1390.92,0.00030684,6]
[326462679,1714939884523,-500.0,0.00030684,6]
[326462680,1714939884533,-1976.17,0.00030684,6]
[326462681,1714939884542,-565.58,0.00030684,6]
[326462682,1714939884552,-521.32,0.00030684,6]
[326462683,1714939884561,-500.0,0.00030684,6]
[326462684,1714939884570,-500.0,0.00030684,6]
[326462685,1714939884579,-1485.83,0.00030684,6]
[326462686,1714939884588,-1602.19,0.00030684,6]
[326462687,1714939884598,-988.8,0.00030684,6]
[326462688,1714939884607,-500.0,0.00030684,6]
[326462689,1714939884617,-904.84,0.00030684,6]
[326462690,1714939884626,-1010.87,0.00030684,6]
[326462691,1714939884636,-500.0,0.00030684,6]
[326462692,1714939884645,-500.0,0.00030684,6]
[326462693,1714939884654,-796.38,0.00030684,6]
[326462694,1714939884664,-1471.83,0.00030684,6]
[326462695,1714939884674,-500.0,0.00030684,6]
[326462696,1714939884683,-2384.51,0.00030684,6]
[326462697,1714939884693,-1229.24,0.00030684,6]
[326462698,1714939884703,-1313.14,0.00030684,6]
[326462699,1714939884712,-1850.78,0.00030684,6]
[326462700,1714939884721,-1418.23,0.00030684,6]
[326462701,1714939884730,-902.26,0.00030684,6]
[326462702,1714939884739,-2053.76,0.00030684,6]
[326462703,1714939884749,-3255.39,0.00030684,6]
[326462704,1714939884758,-502.87711081,0.00030684,6]
[326462705,1714939884767,-624.8,0.00030684,6]
[326462706,1714939884776,-500.0,0.00030684,6]
[326462707,1714939884786,-1208.12,0.00030684,6]
[326462708,1714939884795,-2671.52,0.00030684,6]
[326462709,1714939884805,-599.02,0.00030684,6]
[326462710,1714939884814,-500.0,0.00030684,6]
[326462711,1714939884824,-1395.03,0.00030684,6]
[326462712,1714939884833,-1629.22,0.00030684,6]
[326462713,1714939884842,-709.38,0.00030684,6]
[326462714,1714939884852,-3415.55,0.00030684,6]
[326462715,1714939884861,-754.17,0.00030684,6]
[326462716,1714939884870,-520.06709658,0.00030684,6]
[326462717,1714939884879,-278.13,0.00030684,6]
[326462718,1714939884888,-173.30738554,0.00030684,6]
[326462719,1714939884897,-411.74658354,0.00030684,6]
[326462720,1714939884906,-500.0,0.00030684,6]
[326462721,1714939884915,-500.0,0.00030684,6]
[326462722,1714939884925,-500.0,0.00030684,6]
[326462723,1714939884934,-500.0,0.00030684,6]
[326462724,1714939884943,-500.0,0.00030684,6]
[326462725,1714939884952,-1145.17,0.00030684,6]
[326462726,1714939884961,-1886.54,0.00030684,6]
[326462727,1714939884971,-543.64,0.00030684,6]
[326462728,1714939884980,-642.66,0.00030684,6]
[326462729,1714939884989,-500.0,0.00030684,6]
[326462730,1714939884998,-1316.4,0.00030684,6]
[326462731,1714939885008,-500.0,0.00030684,6]
[326462732,1714939885017,-855.02,0.00030684,6]
[326462733,1714939885027,-1616.45,0.00030684,6]
[326462734,1714939885036,-1513.55,0.00030684,6]
[326462735,1714939885045,-1594.72,0.00030684,6]
[326462736,1714939885055,-1285.76,0.00030684,6]
[326462737,1714939885064,-3512.73,0.00030684,6]
[326462738,1714939885073,-505.65319381,0.00030684,6]
[326462739,1714939885083,-1402.87,0.00030684,6]
[326462740,1714939885092,-912.25,0.00030684,6]
[326462741,1714939885101,-500.0,0.00030684,6]
[326462742,1714939885111,-672.96,0.00030684,6]
[326462743,1714939885120,-500.0,0.00030684,6]
[326462744,1714939885130,-1751.83,0.00030684,6]
[326462745,1714939885139,-500.0,0.00030684,6]
[326462746,1714939885149,-1500.04,0.00030684,6]
[326462747,1714939885159,-1277.9,0.00030684,6]
[326462748,1714939885169,-1505.13,0.00030684,6]
[326462749,1714939885178,-799.33,0.00030684,6]
[326462750,1714939885188,-500.0,0.00030684,6]
[326462751,1714939885198,-500.0,0.00030684,6]
[326462752,1714939885212,-652.23,0.00030684,6]
[326462753,1714939885221,-500.0,0.00030684,6]
[326462754,1714939885231,-1356.14,0.00030684,6]
[326462755,1714939885240,-500.0,0.00030684,6]
[326462756,1714939885250,-993.76,0.00030684,6]
[326462757,1714939885260,-2123.31,0.00030684,6]
[326462758,1714939885269,-3265.84,0.00030684,6]
[326462759,1714939885279,-515.99,0.00030684,6]
[326462760,1714939885291,-500.0,0.00030684,6]
[326462761,1714939885301,-500.0,0.00030684,6]
[326462762,1714939885311,-664.69,0.00030684,6]
[326462763,1714939885320,-1849.04,0.00030684,6]
[326462764,1714939885329,-500.0,0.00030684,6]
[326462765,1714939885338,-500.0,0.00030684,6]
[326462766,1714939885348,-500.0,0.00030684,6]
[326462767,1714939885357,-588.95,0.00030684,6]
[326462768,1714939885366,-2276.76,0.00030684,6]
[326462769,1714939885376,-1168.69,0.00030684,6]
[326462770,1714939885386,-674.3,0.00030684,6]
[326462771,1714939885396,-500.0,0.00030684,6]
[326462772,1714939885405,-1929.39,0.00030684,6]
[326462773,1714939885414,-500.0,0.00030684,6]
[326462774,1714939885424,-1254.7,0.00030684,6]
[326462775,1714939885433,-681.37,0.00030684,6]
[326462776,1714939885442,-647.43,0.00030684,6]
[326462777,1714939885452,-500.0,0.00030684,6]
[326462778,1714939885461,-1258.08,0.00030684,6]
[326462779,1714939885471,-1180.26,0.00030684,6]
[326462780,1714939885480,-653.89,0.00030684,6]
[326462781,1714939885490,-3196.14,0.00030684,6]
[326462782,1714939885500,-765.71,0.00030684,6]
[326462783,1714939885509,-728.05,0.00030684,6]
[326462784,1714939885519,-641.34,0.00030684,6]
[326462785,1714939885528,-500.0,0.00030684,6]
[326462786,1714939885539,-575.31,0.00030684,6]
[326462787,1714939885548,-1011.66,0.00030684,6]
[326462788,1714939885557,-810.93,0.00030684,6]
[326462789,1714939885567,-500.0,0.00030684,6]
[326462790,1714939885576,-500.0,0.00030684,6]
[326462791,1714939885585,-500.0,0.00030684,6]
[326462792,1714939885594,-500.0,0.00030684,6]
[326462793,1714939885603,-726.45,0.00030684,6]
[326462794,1714939885613,-500.0,0.00030684,6]
[326462795,1714939885622,-1113.4,0.00030684,6]
[326462796,1714939885631,-1062.2,0.00030684,6]
[326462797,1714939885640,-500.0,0.00030684,6]
[326462798,1714939885650,-500.0,0.00030684,6]
[326462799,1714939885659,-739.8,0.00030684,6]
[326462800,1714939885669,-950.88,0.00030684,6]
[326462801,1714939885678,-500.0,0.00030684,6]
[326462802,1714939885687,-1113.44,0.00030684,6]
[326462803,1714939885696,-500.0,0.00030684,6]
[326462804,1714939885706,-1830.68,0.00030684,6]
[326462805,1714939885714,-500.0,0.00030684,6]
[326462806,1714939885724,-1450.14,0.00030684,6]
[326462807,1714939885733,-963.18,0.00030684,6]
[326462808,1714939885743,-836.64,0.00030684,6]
[326462809,1714939885752,-500.0,0.00030684,6]
[326462810,1714939885761,-1611.06,0.00030684,6]
[326462811,1714939885770,-725.62,0.00030684,6]
[326462812,1714939885779,-1456.93,0.00030684,6]
[326462813,1714939885789,-500.0,0.00030684,6]
[326462814,1714939885798,-300.0,0.00030684,6]
[326462815,1714939885807,-2144.94,0.00030684,6]
[326462816,1714939885816,-736.34,0.00030684,6]
[326462817,1714939885827,-2792.65,0.00030684,6]
[326462818,1714939885836,-500.0,0.00030684,6]
[326462819,1714939885845,-922.68,0.00030684,6]
[326462820,1714939885855,-500.0,0.00030684,6]
[326462821,1714939885865,-1421.32,0.00030684,6]
[326462822,1714939885874,-569.2993399,0.00030684,6]
[326462823,1714939885883,-647.1,0.00030684,6]
[326462824,1714939885893,-2026.33,0.00030684,6]
[326462825,1714939885902,-1500.34,0.00030684,6]
[326462826,1714939885911,-1293.93,0.00030684,6]
[326462827,1714939885921,-1465.22,0.00030684,2]
[326462828,1714939885929,-1684.28,0.00030684,6]
[326462829,1714939885939,-500.0,0.00030684,6]
[326462830,1714939885948,-500.0,0.00030684,6]
[326462831,1714939885957,-500.0,0.00030684,6]
[326462832,1714939885965,-1822.97,0.00030684,6]
[326462833,1714939885975,-658.77,0.00030684,6]
[326462834,1714939885984,-1176.22,0.00030684,6]
[326462835,1714939885994,-2005.89,0.00030684,6]
[326462836,1714939886004,-653.0,0.00030684,6]
[326462837,1714939886013,-986.38,0.00030684,6]
[326462838,1714939886023,-500.0,0.00030684,6]
[326462839,1714939886032,-500.0,0.00030684,6]
[326462840,1714939886040,-40148.36,0.00030684,6]
[326462841,1714939886050,-591.3,0.00030684,6]
[326462842,1714939886059,-8623.29,0.00030684,6]
[326462843,1714939886068,-617.89,0.00030684,6]
[326462844,1714939886077,-500.0,0.00030684,6]
[326462845,1714939886088,-504.94,0.00030684,6]
[326462846,1714939886097,-1218.18,0.00030684,6]
[326462847,1714939886106,-660.41,0.00030684,6]
[326462848,1714939886116,-1724.68,0.00030684,6]
[326462849,1714939886126,-500.0,0.00030684,6]
[326462850,1714939886135,-612.36,0.00030684,6]
[326462851,1714939886144,-500.0,0.00030684,6]
[326462852,1714939886153,-509.01631517,0.00030684,6]
[326462853,1714939886163,-682.54,0.00030684,6]
[326462854,1714939886171,-733.53,0.00030684,6]
[326462855,1714939886180,-513.3,0.00030684,6]
[326462856,1714939886189,-500.0,0.00030684,6]
[326462857,1714939886199,-705.47,0.00030684,6]
[326462858,1714939886209,-581.84,0.00030684,6]
[326462859,1714939886221,-2131.57,0.00030684,6]
[326462860,1714939886230,-500.0,0.00030684,6]
[326462861,1714939886239,-3832.85,0.00030684,6]
[326462862,1714939886248,-1141.75,0.00030684,6]
[326462863,1714939886259,-1317.36,0.00030684,6]
[326462864,1714939886268,-1803.0,0.00030684,6]
[326462865,1714939886277,-3550.05,0.00030684,6]
[326462866,1714939886288,-646.69,0.00030684,6]
[326462867,1714939886298,-500.0,0.00030684,6]
[326462868,1714939886307,-915.29,0.00030684,6]
[326462869,1714939886317,-2178.12,0.00030684,6]
[326462870,1714939886326,-500.0,0.00030684,6]
[326462871,1714939886336,-3863.49,0.00030684,6]
[326462872,1714939886345,-500.0,0.00030684,6]
[326462873,1714939886355,-546.32,0.00030684,6]
[326462874,1714939886364,-500.0,0.00030684,6]
[326462875,1714939886372,-543.07,0.00030684,6]
[326462876,1714939886382,-3887.32,0.00030684,6]
[326462877,1714939886391,-1028.48,0.00030684,6]
[326462878,1714939886401,-2013.36,0.00030684,6]
[326462879,1714939886410,-500.0,0.00030684,6]
[326462880,1714939886420,-2978.99,0.00030684,6]
[326462881,1714939886429,-500.0,0.00030684,6]
[326462882,1714939886439,-500.0,0.00030684,6]
[326462883,1714939886448,-838.98,0.00030684,6]
[326462884,1714939886458,-500.0,0.00030684,6]
[326462885,1714939886467,-1105.89,0.00030684,6]
[326462886,1714939886477,-500.0,0.00030684,6]
[326462887,1714939886486,-1117.14,0.00030684,6]
[326462888,1714939886496,-1099.64,0.00030684,6]
[326462889,1714939886506,-1243.16,0.00030684,6]
[326462890,1714939886516,-500.0,0.00030684,6]
[326462891,1714939886526,-10308.36,0.00030684,6]
[326462892,1714939886536,-500.0,0.00030684,6]
[326462893,1714939886546,-1872.86,0.00030684,6]
[326462894,1714939886556,-560.65,0.00030684,6]
[326462895,1714939886566,-861.02,0.00030684,6]
[326462896,1714939886576,-500.0,0.00030684,6]
[326462897,1714939886585,-500.0,0.00030684,6]
[326462898,1714939886595,-937.21,0.00030684,6]
[326462899,1714939886605,-1989.04,0.00030684,6]
[326462900,1714939886615,-9206.61,0.00030684,6]
[326462901,1714939886625,-500.0,0.00030684,6]
[326462902,1714939886634,-4725.69,0.00030684,6]
[326462903,1714939886644,-580.17,0.00030684,6]
[326462904,1714939886653,-42789.19,0.00030684,6]